[Event "37th ECCC 2022"]
[Site "Mayrhofen"]
[Date "2022.10.03"]
[Round "1.31"]
[White "Kuzubov, Yuriy"]
[Black "Maiwald, Jens-Uwe"]
[Result "1-0"]
[ECO "E91"]
[WhiteElo "2612"]
[BlackElo "2441"]
[Annotator "TA"]
[PlyCount "79"]
[EventDate "2022.10.03"]
[EventType "team-tourn"]
[EventCountry "AUT"]
[SourceTitle "playchess.com"]
[Source "ChessBase"]
[SourceQuality "1"]
[TimeControl "40/5400+30:1800+30"]

{[%evp 19,79,14,18,14,12,14,15,25,13,17,57,42,91,100,95,84,85,80,97,85,114,108,117,124,123,112,116,109,109,97,105,41,98,83,86,82,112,114,114,117,160,143,150,118,145,146,215,84,113,81,160,130,260,260,200,240,242,231,211,208,441,433]} 1. d4 {[%emt 0:00:04]} Nf6 {[%emt 0:00:09]} 2. c4 {[%emt 0:00:25]} d6 {[%emt 0:00:31]} 3. Nf3 {[%emt 0:00:39]} g6 {[%emt 0:00:24]} 4. Nc3 {[%emt 0:00:07]} Bg7 {[%emt 0:00:08]} 5. e4 {[%emt 0:00:35]} O-O {[%emt 0:00:34]} 6. Be2 {[%emt 0:00:05]} Na6 {[%emt 0:02:45]} 7. O-O {[%emt 0:04:13]} c6 {[%emt 0:01:10]} 8. Re1 {[%emt 0:09:16]} e5 {[%emt 0:00:38]} 9. d5 {[%emt 0:01:13]} Nc5 {[%emt 0:05:09]} 10. Bf1 {[%emt 0:08:05]} a5 {[%emt 0:01:11]} 11. Nd2 {[%emt 0:04:55] E96: King's Indian: Classical: 7...Nbd7 8 Re1 c6 9 Bf1 a5.} a4 {[%emt 0:16:44]} 12. Rb1 {[%emt 0:01:26] [#]} Bd7 $146 {[%emt 0:00:27]} ({Predecessor:} 12... Nh5 13. b4 axb3 14. Nxb3 Nxb3 {½-½ (14) Bilek,I (2405)-Ribli,Z (2590) Hungary 1997}) 13. b4 {[%emt 0:31:43] The position is equal.} axb3 $1 {[%emt 0:00:12]} 14. Nxb3 {[%emt 0:00:19]} Na6 {[%emt 0:18:50]} 15. f3 {[%emt 0:05:27]} c5 {[%emt 0:03:10]} (15... cxd5 $14 {is superior.} 16. exd5 Re8) 16. Bg5 $16 {[%emt 0:01:42]} h6 {[%emt 0:07:46]} 17. Bh4 {[%emt 0:00:27]} Nb4 {[%emt 0:05:00]} 18. Rb2 {[%emt 0:07:22]} Qc7 {[%emt 0:06:26]} 19. Nc1 {[%emt 0:02:01]} Nh5 {[%emt 0:01:13]} 20. Rb3 {[%emt 0:01:55]} f5 {[%emt 0:03:37]} 21. a3 {[%emt 0:00:10]} Na6 {[%emt 0:00:06]} (21... g5 $2 22. Bf2 (22. axb4 cxb4 23. Bf2 bxc3 $11) 22... Na6 23. exf5 $18) 22. Nb5 {[%emt 0:02:27]} Bxb5 {[%emt 0:00:47]} 23. Rxb5 {[%emt 0:00:07]} Nb8 {[%emt 0:05:02]} 24. Qb3 {[%emt 0:02:05]} Ra7 {[%emt 0:00:06]} 25. Na2 {[%emt 0:01:25]} (25. exf5 $16 gxf5 26. Bd3) 25... Nd7 {[%emt 0:06:34]} (25... fxe4 $14 26. Rxe4 Nc6) 26. Nc3 {[%emt 0:00:12]} Bf6 {[%emt 0:00:21]} 27. Bf2 {[%emt 0:00:28]} Bg5 {[%emt 0:02:51]} 28. Qb2 {[%emt 0:01:53]} b6 {[%emt 0:02:26]} 29. Rb3 {[%emt 0:00:36] Black must now prevent Nb5.} Ra6 {[%emt 0:03:37]} 30. Nb5 {[%emt 0:01:08]} Qb8 {[%emt 0:00:06]} 31. g3 {[%emt 0:00:48]} Ng7 {[%emt 0:01:07]} 32. Bh3 {[%emt 0:01:15] White is more active.} Nf6 {[%emt 0:01:32]} (32... Kh7 $16 33. f4 Be7) 33. Qe2 {[%emt 0:01:36]} (33. exf5 $18 {is more deadly.} gxf5 34. Bf1) 33... fxe4 {[%emt 0:02:17]} 34. fxe4 {[%emt 0:00:10]} h5 {[%emt 0:00:10]} (34... Qd8 $142) 35. Rf1 {[%emt 0:01:13] And now Rf3 would win.} Qd8 {[%emt 0:00:51]} (35... Nh7 $16 36. Bd7 Rf7) 36. Rf3 $18 {[%emt 0:01:14]} Nh7 {[%emt 0:00:10]} 37. Rxf8+ {[%emt 0:02:08]} Nxf8 {[%emt 0:00:04]} 38. Be3 {[%emt 0:04:10] [#] Strongly threatening Bxg5.} Nh7 {[%emt 0:00:02]} 39. Be6+ {[%emt 0:01:35]} Kh8 $2 {[%emt 0:00:09]} (39... Nxe6 {keeps fighting.} 40. dxe6 Qe7) 40. Bf7 {[%emt 0:00:52] Weighted Error Value: White=0.12 (very precise) /Black=0.31} 1-0

[Event "37th ECCC 2022"]
[Site "Mayrhofen"]
[Date "2022.10.03"]
[Round "1.32"]
[White "Hausner, Ivan"]
[Black "Fedorchuk, Sergey A."]
[Result "0-1"]
[ECO "A40"]
[WhiteElo "2266"]
[BlackElo "2619"]
[Annotator "TA"]
[PlyCount "158"]
[EventDate "2022.10.03"]
[EventType "team-tourn"]
[EventCountry "AUT"]
[SourceTitle "playchess.com"]
[Source "ChessBase"]
[SourceQuality "1"]
[TimeControl "40/5400+30:1800+30"]

{[%evp 17,158,14,31,-7,24,16,30,35,49,35,52,14,33,-16,45,0,21,21,42,34,51,37,38,22,34,14,31,0,18,0,9,10,7,12,12,12,16,0,0,0,0,0,8,36,9,0,6,0,0,0,0,0,0,0,0,0,0,-13,-23,-41,-7,-30,0,0,0,0,0,0,0,0,0,0,0,0,0,0,0,0,0,0,0,0,0,0,0,-211,0,0,0,0,0,-30,0,-218,-214,-215,-215,-215,-223,-247,-236,-721,-671,-490,-259,-258,-258,-246,-247,-224,-92,-93,-93,-155,0,0,0,-120,-58,-55,-8,-8,-8,-8,-8,-8,-8,-8,-8,-29,-8,-8,-8,-8,0,0,0,0,0,0,0,-449,-449]} 1. d4 {[%emt 0:00:03]} Nf6 {[%emt 0:00:13]} 2. c4 {[%emt 0:00:03]} e6 {[%emt 0:00:12]} 3. g3 {[%emt 0:00:04]} d5 {[%emt 0:04:11]} 4. Nf3 {[%emt 0:00:08]} Bb4+ {[%emt 0:00:12]} 5. Bd2 {[%emt 0:00:08]} Be7 {[%emt 0:00:52]} 6. Bg2 {[%emt 0:00:10]} O-O {[%emt 0:00:53]} 7. O-O {[%emt 0:00:12]} c6 {[%emt 0:04:30]} 8. Qc2 {[%emt 0:00:16]} Nbd7 {[%emt 0:00:13] now supersedes 8...b6.} 9. Bf4 {[%emt 0:00:14]} a5 {[%emt 0:01:17]} 10. b3 {[%emt 0:03:48] E08: Closed Catalan: Main Line: 7 Qc2.} Nh5 $5 {[%emt 0:04:15][%mdl 4] Leaves trodden paths.} 11. Bd2 {[%emt 0:00:25] [#]} f5 $146 {[%emt 0:07:34] Inhibits e4.} ({Predecessor:} 11... Nhf6 12. Nc3 b6 13. e4 Ba6 14. Ne5 Nxe5 15. dxe5 Nd7 16. exd5 cxd5 17. Rfe1 dxc4 18. Bxa8 cxb3 {½-½ (53) Jaworski,M (2345)-Galliamova,A (2445) Katowice 1993}) 12. Nc3 {[%emt 0:00:23] White has an edge.} Bd6 {[%emt 0:01:39]} 13. Rad1 {[%emt 0:03:39]} Qe8 {[%emt 0:07:02]} 14. e3 {[%emt 0:05:05]} Nhf6 {[%emt 0:05:30][%cal Bh5f6,Bf6e4,Be4d2][%mdl 32]} 15. Ne1 {[%emt 0:06:49]} (15. c5 $14 Bc7 16. Rfe1) 15... Qh5 {[%emt 0:03:02]} ({Black should play} 15... b6 $1 $11) 16. f4 {[%emt 0:02:00]} Ne4 {[%emt 0:01:10]} 17. Nd3 {[%emt 0:03:08]} Nxd2 {[%emt 0:13:40]} 18. Qxd2 {[%emt 0:00:21]} Kh8 {[%emt 0:00:07]} 19. c5 {[%emt 0:01:15]} Bc7 {[%emt 0:01:01]} 20. a3 {[%emt 0:01:34]} b6 {[%emt 0:09:19]} 21. cxb6 {[%emt 0:01:27]} Nxb6 {[%emt 0:00:06]} 22. Nc5 {[%emt 0:00:47]} Bd6 {[%emt 0:00:44]} 23. Bf3 {[%emt 0:01:39]} (23. Rb1 {keeps more tension.} Ba6 24. Rfc1 Bxc5 25. dxc5 Nd7 26. b4) 23... Qf7 {[%emt 0:00:35]} 24. Be2 {[%emt 0:00:15]} Bxc5 {[%emt 0:03:10]} 25. dxc5 {[%emt 0:00:07]} Nd7 {[%emt 0:00:04][%cal Bb6d7,Bd7f6,Bf6e4][%mdl 32]} 26. b4 {[%emt 0:00:46]} Ba6 {[%emt 0:01:10]} 27. Qd4 {[%emt 0:03:42]} Bxe2 {[%emt 0:08:06]} 28. Nxe2 {[%emt 0:00:08]} Nf6 {[%emt 0:00:13]} 29. Rb1 {[%emt 0:03:22]} axb4 {[%emt 0:01:40]} (29... Qh5 $5 {[%cal Rh5e2]} 30. Qb2 Ng4 $11) 30. axb4 {[%emt 0:00:05]} Qh5 {[%emt 0:00:44]} 31. Qd2 {[%emt 0:04:43]} Ra3 {[%emt 0:03:13]} 32. Nd4 {[%emt 0:02:49][%csl LRc6,LRe6]} Ne4 {[%emt 0:00:33]} 33. Qd1 {[%emt 0:01:44]} (33. Qb2 Rxe3 34. Qg2 Rd3 $17) 33... Qh3 {[%emt 0:04:22]} 34. Rb2 {[%emt 0:07:05] Against Ra2} Rxe3 {[%emt 0:00:11][%cal Oe4g3]} 35. Rf3 {[%emt 0:01:41]} Qh5 {[%emt 0:05:43][%cal Oe6e5]} 36. Qf1 {[%emt 0:05:03]} Rxf3 {[%emt 0:00:21]} 37. Qxf3 {[%emt 0:00:07]} Qe8 {[%emt 0:00:07]} 38. Ra2 {[%emt 0:00:42]} h6 {[%emt 0:08:01]} 39. Qe3 {[%emt 0:02:45]} e5 {[%emt 0:03:15]} 40. fxe5 {[%emt 0:00:17]} Qxe5 {[%emt 0:00:18] aiming for ...f4.} 41. Nxc6 {[%emt 0:30:25]} Qc7 {[%emt 0:30:34]} 42. Nd4 {[%emt 0:00:13]} f4 {[%emt 0:00:00]} 43. gxf4 {[%emt 0:00:00]} Rxf4 {[%emt 0:00:00]} 44. Ne6 {[%emt 0:00:00][%csl LRc7,LRf4]} Rg4+ {[%emt 0:00:00]} 45. Rg2 $1 {[%emt 0:00:00]} Rxg2+ {[%emt 0:00:00]} 46. Kxg2 $11 {[%emt 0:00:00][%mdl 4096] Endgame KQN-KQN} Qd7 {[%emt 0:00:00]} 47. Nf4 {[%emt 0:00:00]} Qg4+ {[%emt 0:00:00]} 48. Kf1 {[%emt 0:00:00]} Qf5 {[%emt 0:00:00]} 49. Kg2 {[%emt 0:00:00]} d4 {[%emt 0:00:00]} 50. Qf3 {[%emt 0:00:00]} Ng5 {[%emt 0:00:00]} 51. Qf2 {[%emt 0:00:00]} (51. Qg3 $11) 51... Qe4+ $2 {[%emt 0:00:00]} (51... d3 $1 $19 {Hoping for ...Qg4+.} 52. Qe3 d2 53. Qxd2 Qe4+ 54. Kf2 Qf3+ 55. Ke1 (55. Kg1 Qxf4 56. Qxf4 Nh3+ 57. Kf1 Nxf4 $19) 55... Ne4 56. Qd8+ (56. Ng6+ $2 Kh7 $19) 56... Kh7) 52. Kg3 {[%emt 0:00:00]} d3 {[%emt 0:00:09]} 53. h4 $1 {[%emt 0:00:00]} Nf7 {[%emt 0:01:57]} 54. Ng2 {[%emt 0:00:00]} (54. b5 Ne5 55. c6 d2 56. Qxd2 Qf3+ 57. Kh2 Ng4+ 58. Kg1 Qg3+ 59. Qg2 (59. Kf1 $2 Nh2+ 60. Qxh2 Qxh2 $19) 59... Qxf4 $17) 54... Ne5 {[%emt 0:01:55]} (54... d2 55. Qxd2 Ne5 56. Qf4 Qg6+ 57. Kh2 $14) 55. Ne3 {[%emt 0:00:41] Prevents Qg4+.} (55. Qf8+ $11 Kh7 56. Qf4) 55... Ng6 $19 {[%emt 0:00:34]} ({Don't play} 55... Qxb4 56. Qf8+ Kh7 57. Qf5+ Kh8 58. Qc8+ Kh7 59. Qf5+ Kh8 60. Qxe5 $18) 56. h5 {[%emt 0:13:34]} Qh4+ {[%emt 0:00:11]} 57. Kf3 {[%emt 0:00:11] Strongly threatening Qxh4.} Qf6+ {[%emt 0:03:11]} ({And not} 57... Qxh5+ 58. Ke4 $11) 58. Kg2 {[%emt 0:03:23] Qxf6 is the strong threat.} Nf4+ {[%emt 0:00:19]} 59. Kh2 $2 {[%emt 0:01:17]} (59. Kh1) 59... Qe5 {[%emt 0:00:20]} 60. c6 {[%emt 0:05:43]} Qxh5+ {[%emt 0:00:48]} (60... Nd5+ $142 61. Qg3 Qxh5+ 62. Qh3 (62. Kg1 $2 d2 $19) 62... Qe2+ 63. Ng2 Qe4) 61. Kg3 {[%emt 0:00:30] Black must now prevent c7.} Ne2+ {[%emt 0:00:26]} 62. Kg2 {[%emt 0:00:16]} Qg6+ {[%emt 0:00:35]} 63. Kf1 {[%emt 0:00:17] And now c7 would win.} Qxc6 {[%emt 0:00:56]} (63... Ng3+ $1 $19 {is more deadly.} 64. Ke1 Qd6) 64. Qf8+ $17 {[%emt 0:00:18]} Kh7 {[%emt 0:00:04]} 65. Qf5+ {[%emt 0:00:05]} Kh8 {[%emt 0:00:27]} 66. Qf8+ {[%emt 0:00:06]} Kh7 {[%emt 0:00:05]} 67. Qf5+ {[%emt 0:00:02] [#]} Kg8 {[%emt 0:00:04]} (67... Qg6 $1 $17 {( -> ...Ng3+)} 68. Qxg6+ Kxg6) 68. Qxd3 $15 {[%emt 0:00:17]} Ng3+ {[%emt 0:00:10]} (68... Nc3 $15 {is superior.} 69. Ke1 h5) 69. Ke1 $11 {[%emt 0:00:43]} Qh1+ {[%emt 0:01:24]} 70. Kd2 {[%emt 0:00:35]} Ne4+ {[%emt 0:00:13]} 71. Kc2 {[%emt 0:00:10]} Qh2+ {[%emt 0:00:38]} 72. Kb3 {[%emt 0:00:19]} Qf4 {[%emt 0:00:15]} 73. Qd4 {[%emt 0:02:00]} Qf7+ {[%emt 0:01:33]} (73... h5 $5 {[%cal Rh5h4]} 74. Kc2 Qf2+ 75. Kd3 Ng3 $15) 74. Kc2 {[%emt 0:00:43]} Qg6 {[%emt 0:00:36]} 75. b5 {[%emt 0:03:46]} Nd6+ {[%emt 0:00:15]} 76. Kd2 {[%emt 0:00:10]} Qe6 {[%emt 0:00:46]} 77. b6 {[%emt 0:00:17]} h5 {[%emt 0:00:13]} 78. Qb4 {[%emt 0:03:50]} Qd7 {[%emt 0:00:11]} 79. Qd4 $2 {[%emt 0:00:15][%mdl 8192] [#]} (79. Ke2 $11 {and White is okay.}) 79... Nc4+ $1 {[%emt 0:00:25][%mdl 512] Weighted Error Value: White=0.32/Black=0.17 (very precise)} 0-1

[Event "37th ECCC 2022"]
[Site "Mayrhofen"]
[Date "2022.10.03"]
[Round "1.33"]
[White "Wagner, Dennis"]
[Black "Lever, Erwan"]
[Result "1-0"]
[ECO "B40"]
[WhiteElo "2570"]
[BlackElo "2242"]
[Annotator "TA"]
[PlyCount "69"]
[EventDate "2022.10.03"]
[EventType "team-tourn"]
[EventCountry "AUT"]
[SourceTitle "playchess.com"]
[Source "ChessBase"]
[SourceQuality "1"]
[TimeControl "40/5400+30:1800+30"]

{[%evp 18,69,28,39,52,48,53,6,33,20,79,75,160,159,209,147,173,168,313,253,271,272,266,260,268,202,273,258,269,272,439,441,462,456,479,487,487,477,548,537,638,608,602,602,716,712,690,689,750,725,783,753,874,862]} 1. e4 {[%emt 0:00:05]} c5 {[%emt 0:00:06]} 2. Nf3 {[%emt 0:00:05]} e6 {[%emt 0:00:06]} 3. c3 {[%emt 0:00:10]} d5 {[%emt 0:00:07]} 4. exd5 {[%emt 0:00:05]} Qxd5 {[%emt 0:00:08]} 5. d4 {[%emt 0:00:16]} Nf6 {[%emt 0:00:07]} 6. Na3 {[%emt 0:00:22]} Nc6 {[%emt 0:02:20]} 7. Be3 {[%emt 0:00:32]} cxd4 {[%emt 0:00:54]} 8. Nb5 {[%emt 0:00:07]} Qd8 {[%emt 0:00:07]} 9. Nbxd4 {[%emt 0:00:17]} Nxd4 {[%emt 0:04:29]} 10. Bxd4 {[%emt 0:00:15]} Be7 {[%emt 0:02:08] C10: French with 3 Nc3: Unusual Black 3rd moves and 3...dxe4.} 11. Bd3 {[%emt 0:00:17]} O-O {[%emt 0:03:56]} 12. Ne5 {[%emt 0:10:19]} (12. Qc2 $14 {deserves consideration.}) 12... Qd5 {[%emt 0:13:37] The position is equal.} 13. O-O {[%emt 0:01:37] [#]} Rd8 $146 {[%emt 0:11:11]} (13... b6 $11) ({Predecessor:} 13... b6 14. Bc4 Qd6 15. Qf3 Rb8 16. Nc6 Bb7 17. Nxe7+ Qxe7 18. Qe2 Rfd8 19. Rad1 Rbc8 20. Rd3 Kh8 {1-0 (35) Santarius,E (2302)-Matus,N (1885) Chicago 2017}) 14. Re1 $16 {[%emt 0:17:44] White leaves nothing to chance now.} b5 {[%emt 0:12:47] [#]} ({Black should play} 14... Bd7) 15. Be2 $1 {[%emt 0:01:48] And now Bf3 would win. White is more active.} Qd6 {[%emt 0:07:30]} (15... Bb7 $2 16. Bf3 Qd6 17. Bxb7 $18) (15... Qb7 $16 {might work better.} 16. a4 a6 17. axb5 axb5) 16. Bxb5 {[%emt 0:09:02]} Rb8 {[%emt 0:00:25]} 17. Qe2 {[%emt 0:01:51] aiming for Rad1.} Bb7 {[%emt 0:06:14]} (17... a6 {was called for.}) 18. Bxa7 {[%emt 0:14:01]} Qd5 {[%emt 0:00:22][%csl Gb7][%cal Rd5g2]} 19. Nf3 {[%emt 0:04:10]} Ra8 {[%emt 0:00:58]} 20. Bb6 {[%emt 0:01:25] Hoping for Red1.} Rdc8 {[%emt 0:07:54]} 21. Bd4 {[%emt 0:09:55]} Qf5 {[%emt 0:04:08]} 22. Bd3 {[%emt 0:12:21]} Qh5 {[%emt 0:01:08]} 23. Ne5 {[%emt 0:01:09]} Qg5 $2 {[%emt 0:00:13]} (23... Qxe2 24. Bxe2 (24. Rxe2 Nd5 $16) 24... Bc5) 24. g3 $18 {[%emt 0:00:12][%cal Bg2g3,Bg3f4][%mdl 32] White is clearly winning.} Qh6 {[%emt 0:02:17]} 25. h4 {[%emt 0:05:05]} Nd5 {[%emt 0:01:30]} 26. c4 {[%emt 0:07:28]} ({Don't take} 26. Qf3 f5 27. c4 Bxh4 $18) 26... Nf4 {[%emt 0:09:21]} 27. gxf4 {[%emt 0:00:03]} Rd8 {[%emt 0:03:06]} 28. Bc3 {[%emt 0:01:10]} Rxd3 {[%emt 0:01:29]} 29. Qxd3 {[%emt 0:00:13] Strongly threatening Qd7.} Qxh4 {[%emt 0:00:02][%csl Gb7][%cal Rh4h1] [#]} 30. Kf1 $1 {[%emt 0:01:42]} ({Weaker is} 30. f3 Qg3+ 31. Kf1 (31. Kh1 $2 f6 $19) 31... Qh3+ 32. Ke2 Qh2+ 33. Kd1 Rd8 $16) 30... Qh1+ {[%emt 0:03:01]} 31. Ke2 {[%emt 0:00:01]} Qh5+ {[%emt 0:00:09]} 32. Nf3 {[%emt 0:00:32]} Rd8 {[%emt 0:00:20]} 33. Rh1 {[%emt 0:00:35][%cal Be1h1,Bh1h5,Bh5b5][%mdl 32]} Rxd3 {[%emt 0:01:30]} 34. Rxh5 {[%emt 0:00:02]} Rxf3 {[%emt 0:00:15]} 35. Rb5 {[%emt 0:00:06] Weighted Error Value: White=0.11 (very precise) /Black=0.45} 1-0